[Event "Titled Tuesday Blitz August 31 2021"]
[White "De Silva, L M S T"]
[Black "Timofeev, Artyom"]
[WhiteFideId "9953698"]
[BlackFideId "4140419"]
[WhiteElo "1621"]
[BlackElo "2582"]
[Result "0-1"]
[Round "10"]
[TimeControl "180+1"]
[Date "2021.08.31"]
[WhiteClock "0:00:10"]
[BlackClock "0:00:31"]

1. e4 {[%clk 0:03:00]}  e6 {[%clk 0:02:59]} 2. d4 {[%clk 0:03:00]}  d5 {[%clk 0:03:00]} 3. Nc3 {[%clk 0:03:00]}  dxe4 {[%clk 0:03:00]} 4. Nxe4 {[%clk 0:03:01]}  Nd7 {[%clk 0:03:01]} 5. Nf3 {[%clk 0:03:01]}  Ngf6 {[%clk 0:03:01]} 6. Bd3 {[%clk 0:03:01]}  c5 {[%clk 0:03:00]} 7. O-O {[%clk 0:02:59]}  Nxe4 {[%clk 0:02:57]} 8. Bxe4 {[%clk 0:02:59]}  Nf6 {[%clk 0:02:57]} 9. Bd3 {[%clk 0:02:57]}  cxd4 {[%clk 0:02:57]} 10. Nxd4 {[%clk 0:02:58]}  Bc5 {[%clk 0:02:57]} 11. Nb3 {[%clk 0:02:56]}  Bd6 {[%clk 0:02:56]} 12. h3 {[%clk 0:02:53]}  O-O {[%clk 0:02:53]} 13. Bg5 {[%clk 0:02:53]}  h6 {[%clk 0:02:52]} 14. Bh4 {[%clk 0:02:53]}  b6 {[%clk 0:02:45]} 15. Be4 {[%clk 0:02:45]}  Bh2+ {[%clk 0:02:37]} 16. Kxh2 {[%clk 0:02:42]}  Qxd1 {[%clk 0:02:36]} 17. Raxd1 {[%clk 0:02:41]}  Nxe4 {[%clk 0:02:35]} 18. f3 {[%clk 0:02:37]}  Nf6 {[%clk 0:02:32]} 19. Bxf6 {[%clk 0:02:37]}  gxf6 {[%clk 0:02:33]} 20. f4 {[%clk 0:02:26]}  f5 {[%clk 0:02:32]} 21. Rd2 {[%clk 0:02:24]}  Bb7 {[%clk 0:02:29]} 22. Rfd1 {[%clk 0:02:23]}  Bd5 {[%clk 0:02:28]} 23. Nd4 {[%clk 0:02:18]}  Be4 {[%clk 0:02:28]} 24. b3 {[%clk 0:02:17]}  a6 {[%clk 0:02:24]} 25. c4 {[%clk 0:02:16]}  Rac8 {[%clk 0:02:23]} 26. a4 {[%clk 0:02:15]}  Kg7 {[%clk 0:02:22]} 27. Ne2 {[%clk 0:02:15]}  Bc6 {[%clk 0:02:15]} 28. Rd6 {[%clk 0:02:14]}  Rc7 {[%clk 0:02:00]} 29. Nd4 {[%clk 0:02:10]}  Rfc8 {[%clk 0:02:00]} 30. Rd2 {[%clk 0:01:38]}  h5 {[%clk 0:01:59]} 31. b4 {[%clk 0:01:28]}  Bxa4 {[%clk 0:01:54]} 32. Rxb6 {[%clk 0:01:26]}  Rxc4 {[%clk 0:01:54]} 33. Rxa6 {[%clk 0:01:27]}  Rxb4 {[%clk 0:01:53]} 34. Ra7 {[%clk 0:01:23]}  Kf6 {[%clk 0:01:50]} 35. Kg3 {[%clk 0:01:08]}  Rg8+ {[%clk 0:01:25]} 36. Kh4 {[%clk 0:01:01]}  Rd8 {[%clk 0:01:23]} 37. Nf3 {[%clk 0:00:53]}  Rxd2 {[%clk 0:01:23]} 38. Nxd2 {[%clk 0:00:54]}  Rxf4+ {[%clk 0:01:22]} 39. Kg3 {[%clk 0:00:49]}  Rb4 {[%clk 0:01:19]} 40. Nf3 {[%clk 0:00:49]}  Bc6 {[%clk 0:01:18]} 41. Ra3 {[%clk 0:00:46]}  Bxf3 {[%clk 0:01:17]} 42. Rxf3 {[%clk 0:00:47]}  h4+ {[%clk 0:01:16]} 43. Kf2 {[%clk 0:00:47]}  e5 {[%clk 0:01:13]} 44. Ra3 {[%clk 0:00:47]}  Kg5 {[%clk 0:01:13]} 45. Kf3 {[%clk 0:00:47]}  e4+ {[%clk 0:01:10]} 46. Ke3 {[%clk 0:00:48]}  Rb2 {[%clk 0:01:09]} 47. Ra8 {[%clk 0:00:43]}  Rb3+ {[%clk 0:01:09]} 48. Ke2 {[%clk 0:00:43]}  Kf4 {[%clk 0:01:09]} 49. Rh8 {[%clk 0:00:42]}  Kg3 {[%clk 0:01:04]} 50. Rg8+ {[%clk 0:00:42]}  Kh2 {[%clk 0:01:04]} 51. Rg5 {[%clk 0:00:40]}  f4 {[%clk 0:01:03]} 52. Rg4 {[%clk 0:00:33]}  Rb2+ {[%clk 0:01:01]} 53. Kf1 {[%clk 0:00:33]}  Rb1+ {[%clk 0:01:01]} 54. Ke2 {[%clk 0:00:32]}  f5 {[%clk 0:00:38]} 55. Rxf4 {[%clk 0:00:27]}  Kxg2 {[%clk 0:00:38]} 56. Rxh4 {[%clk 0:00:19]}  Kg3 {[%clk 0:00:36]} 57. Rh8 {[%clk 0:00:18]}  Rb2+ {[%clk 0:00:36]} 58. Ke1 {[%clk 0:00:18]}  f4 {[%clk 0:00:35]} 59. h4 {[%clk 0:00:19]}  Kf3 {[%clk 0:00:33]} 60. h5 {[%clk 0:00:19]}  e3 {[%clk 0:00:34]} 61. Rb8 {[%clk 0:00:17]}  Rh2 {[%clk 0:00:33]} 62. Kd1 {[%clk 0:00:15]}  Rxh5 {[%clk 0:00:33]} 63. Kc2 {[%clk 0:00:16]}  Rh1 {[%clk 0:00:32]} 64. Kb2 {[%clk 0:00:16]}  e2 {[%clk 0:00:32]} 65. Rb3+ {[%clk 0:00:16]}  Kf2 {[%clk 0:00:32]} 66. Rc3 {[%clk 0:00:16]}  e1=Q {[%clk 0:00:31]} 67. Rc2+ {[%clk 0:00:17]}  Qe2 {[%clk 0:00:32]} 68. Kb3 {[%clk 0:00:09]}  Qxc2+ {[%clk 0:00:31]} 69. Ka3 {[%clk 0:00:10]} 0-1


[Site "https://www.chess.com"]

[Event "Titled Tuesday Blitz August 31 2021"]
[White "Do Valle Cardoso, Lucas"]
[Black "Tokman, Ariel"]
[WhiteFideId "2163144"]
[BlackFideId "117420"]
[WhiteElo "2387"]
[BlackElo "2345"]
[Result "0-1"]
[Round "10"]
[TimeControl "180+1"]
[Date "2021.08.31"]
[WhiteClock "0:00:03"]
[BlackClock "0:00:26"]

1. e4 {[%clk 0:03:00]}  d6 {[%clk 0:02:59]} 2. d4 {[%clk 0:03:01]}  Nf6 {[%clk 0:03:00]} 3. Nc3 {[%clk 0:03:00]}  Nbd7 {[%clk 0:03:00]} 4. Nf3 {[%clk 0:02:59]}  e5 {[%clk 0:03:00]} 5. Bc4 {[%clk 0:02:59]}  Be7 {[%clk 0:03:01]} 6. a4 {[%clk 0:02:56]}  O-O {[%clk 0:03:00]} 7. h3 {[%clk 0:02:55]}  a6 {[%clk 0:03:00]} 8. a5 {[%clk 0:02:50]}  exd4 {[%clk 0:02:58]} 9. Nxd4 {[%clk 0:02:50]}  Ne5 {[%clk 0:02:58]} 10. Bb3 {[%clk 0:02:47]}  c5 {[%clk 0:02:58]} 11. Nde2 {[%clk 0:02:36]}  Nc6 {[%clk 0:02:58]} 12. O-O {[%clk 0:02:31]}  Nxa5 {[%clk 0:02:57]} 13. Bd5 {[%clk 0:02:31]}  Nc6 {[%clk 0:02:55]} 14. Bf4 {[%clk 0:02:28]}  Nb4 {[%clk 0:02:32]} 15. Bh2 {[%clk 0:02:22]}  Nbxd5 {[%clk 0:02:30]} 16. Nxd5 {[%clk 0:02:21]}  Nxd5 {[%clk 0:02:30]} 17. Qxd5 {[%clk 0:02:18]}  Qb6 {[%clk 0:02:24]} 18. b3 {[%clk 0:02:04]}  Be6 {[%clk 0:02:24]} 19. Qd3 {[%clk 0:02:02]}  Qb5 {[%clk 0:02:18]} 20. c4 {[%clk 0:02:01]}  Qb4 {[%clk 0:02:16]} 21. Rfd1 {[%clk 0:01:42]}  b5 {[%clk 0:02:05]} 22. Rac1 {[%clk 0:01:35]}  bxc4 {[%clk 0:02:03]} 23. bxc4 {[%clk 0:01:35]}  Rab8 {[%clk 0:01:50]} 24. Nf4 {[%clk 0:01:19]}  Rbd8 {[%clk 0:01:11]} 25. Bg3 {[%clk 0:00:36]}  Bf6 {[%clk 0:01:05]} 26. Nxe6 {[%clk 0:00:22]}  fxe6 {[%clk 0:01:06]} 27. Bxd6 {[%clk 0:00:22]}  Bd4 {[%clk 0:01:03]} 28. Bxf8 {[%clk 0:00:17]}  Bxf2+ {[%clk 0:00:57]} 29. Kxf2 {[%clk 0:00:14]}  Rxd3 {[%clk 0:00:58]} 30. Rxd3 {[%clk 0:00:14]}  Qb2+ {[%clk 0:00:57]} 31. Kf3 {[%clk 0:00:03]}  Qxc1 {[%clk 0:00:56]} 32. Bd6 {[%clk 0:00:03]}  Qxc4 {[%clk 0:00:40]} 33. Ke3 {[%clk 0:00:03]}  a5 {[%clk 0:00:39]} 34. e5 {[%clk 0:00:04]}  a4 {[%clk 0:00:39]} 35. Kd2 {[%clk 0:00:04]}  Qb4+ {[%clk 0:00:36]} 36. Kc2 {[%clk 0:00:03]}  a3 {[%clk 0:00:36]} 37. Rb3 {[%clk 0:00:04]}  Qc4+ {[%clk 0:00:36]} 38. Rc3 {[%clk 0:00:04]}  Qa2+ {[%clk 0:00:33]} 39. Kd3 {[%clk 0:00:04]}  Qb1+ {[%clk 0:00:33]} 40. Kc4 {[%clk 0:00:02]}  Qb4+ {[%clk 0:00:28]} 41. Kd3 {[%clk 0:00:02]}  a2 {[%clk 0:00:28]} 42. Rxc5 {[%clk 0:00:02]}  Qxc5 {[%clk 0:00:26]} 43. Bxc5 {[%clk 0:00:03]}  a1=Q {[%clk 0:00:26]} 0-1


[Site "https://www.chess.com"]

[Event "Titled Tuesday Blitz August 31 2021"]
[White "Dobrowolski, Piotr"]
[Black "Filippova, Margarita"]
[WhiteFideId "1106236"]
[BlackFideId "34199680"]
[WhiteElo "2296"]
[BlackElo "1829"]
[Result "1-0"]
[Round "10"]
[TimeControl "180+1"]
[Date "2021.08.31"]
[WhiteClock "0:02:09"]
[BlackClock "0:01:55"]

1. e4 {[%clk 0:03:00]}  e5 {[%clk 0:02:59]} 2. Nf3 {[%clk 0:03:00]}  Nc6 {[%clk 0:02:59]} 3. Bb5 {[%clk 0:02:59]}  g6 {[%clk 0:02:58]} 4. d4 {[%clk 0:02:59]}  exd4 {[%clk 0:02:58]} 5. c3 {[%clk 0:02:58]}  d3 {[%clk 0:02:56]} 6. Bg5 {[%clk 0:02:57]}  Be7 {[%clk 0:02:56]} 7. h4 {[%clk 0:02:56]}  h6 {[%clk 0:02:54]} 8. Bf4 {[%clk 0:02:54]}  Nf6 {[%clk 0:02:50]} 9. Qxd3 {[%clk 0:02:53]}  a6 {[%clk 0:02:50]} 10. Ba4 {[%clk 0:02:48]}  d5 {[%clk 0:02:44]} 11. e5 {[%clk 0:02:32]}  Ne4 {[%clk 0:02:41]} 12. Nd4 {[%clk 0:02:26]}  Bd7 {[%clk 0:02:31]} 13. e6 {[%clk 0:02:19]}  fxe6 {[%clk 0:02:16]} 14. Bxc6 {[%clk 0:02:19]}  bxc6 {[%clk 0:02:15]} 15. f3 {[%clk 0:02:20]}  c5 {[%clk 0:02:09]} 16. fxe4 {[%clk 0:02:11]}  cxd4 {[%clk 0:02:08]} 17. exd5 {[%clk 0:02:11]}  Kf7 {[%clk 0:02:07]} 18. O-O {[%clk 0:02:10]}  Kg7 {[%clk 0:01:56]} 19. Be5+ {[%clk 0:02:10]}  Kh7 {[%clk 0:01:56]} 20. Rf7+ {[%clk 0:02:09]}  Kg8 {[%clk 0:01:55]} 21. Qxg6# {[%clk 0:02:09]} 1-0


[Site "https://www.chess.com"]

[Event "Titled Tuesday Blitz August 31 2021"]
[White "Wagner, Dinara"]
[Black "Vlassov, Nikolai"]
[WhiteFideId "24157570"]
[BlackFideId "4103360"]
[WhiteElo "2260"]
[BlackElo "2407"]
[Result "0-1"]
[Round "10"]
[TimeControl "180+1"]
[Date "2021.08.31"]
[WhiteClock "0:00:04"]
[BlackClock "0:00:13"]

1. d4 {[%clk 0:03:00]}  Nf6 {[%clk 0:02:59]} 2. c4 {[%clk 0:03:01]}  Nc6 {[%clk 0:03:00]} 3. Nf3 {[%clk 0:03:01]}  e6 {[%clk 0:03:00]} 4. g3 {[%clk 0:03:02]}  Bb4+ {[%clk 0:03:00]} 5. Bd2 {[%clk 0:03:01]}  a5 {[%clk 0:03:00]} 6. Bg2 {[%clk 0:03:01]}  d6 {[%clk 0:03:01]} 7. O-O {[%clk 0:03:00]}  e5 {[%clk 0:03:01]} 8. d5 {[%clk 0:02:56]}  Nb8 {[%clk 0:03:01]} 9. Be3 {[%clk 0:02:55]}  Na6 {[%clk 0:02:56]} 10. Nbd2 {[%clk 0:02:53]}  Bd7 {[%clk 0:02:54]} 11. a3 {[%clk 0:02:44]}  Bc5 {[%clk 0:02:54]} 12. Bxc5 {[%clk 0:02:43]}  Nxc5 {[%clk 0:02:54]} 13. b4 {[%clk 0:02:44]}  Na6 {[%clk 0:02:29]} 14. Qb3 {[%clk 0:02:40]}  O-O {[%clk 0:02:28]} 15. Rac1 {[%clk 0:02:37]}  axb4 {[%clk 0:02:24]} 16. axb4 {[%clk 0:02:37]}  c6 {[%clk 0:02:24]} 17. dxc6 {[%clk 0:02:22]}  bxc6 {[%clk 0:02:23]} 18. Qc3 {[%clk 0:02:18]}  Rb8 {[%clk 0:02:21]} 19. Rb1 {[%clk 0:02:17]}  Re8 {[%clk 0:02:11]} 20. Rfd1 {[%clk 0:02:17]}  Qe7 {[%clk 0:02:05]} 21. Ng5 {[%clk 0:02:15]}  d5 {[%clk 0:01:59]} 22. c5 {[%clk 0:02:06]}  e4 {[%clk 0:01:51]} 23. e3 {[%clk 0:01:48]}  Bg4 {[%clk 0:01:43]} 24. Rdc1 {[%clk 0:01:47]}  Qd7 {[%clk 0:01:41]} 25. f3 {[%clk 0:01:21]}  exf3 {[%clk 0:01:35]} 26. Ngxf3 {[%clk 0:01:21]}  Nc7 {[%clk 0:01:30]} 27. Nd4 {[%clk 0:01:19]}  h5 {[%clk 0:01:16]} 28. Rf1 {[%clk 0:01:15]}  Re7 {[%clk 0:01:07]} 29. Rbe1 {[%clk 0:01:08]}  Na6 {[%clk 0:01:00]} 30. Rb1 {[%clk 0:00:49]}  Qe8 {[%clk 0:01:00]} 31. Rfe1 {[%clk 0:00:47]}  Reb7 {[%clk 0:00:59]} 32. b5 {[%clk 0:00:45]}  cxb5 {[%clk 0:00:59]} 33. c6 {[%clk 0:00:45]}  b4 {[%clk 0:00:51]} 34. Qa1 {[%clk 0:00:41]}  Rb6 {[%clk 0:00:51]} 35. Qa5 {[%clk 0:00:35]}  Nc7 {[%clk 0:00:48]} 36. h3 {[%clk 0:00:30]}  Bc8 {[%clk 0:00:46]} 37. Kh2 {[%clk 0:00:29]}  h4 {[%clk 0:00:42]} 38. gxh4 {[%clk 0:00:26]}  Qe5+ {[%clk 0:00:42]} 39. Kg1 {[%clk 0:00:27]}  Qg3 {[%clk 0:00:32]} 40. Nf1 {[%clk 0:00:25]}  Qxh4 {[%clk 0:00:32]} 41. Qc5 {[%clk 0:00:15]}  Bxh3 {[%clk 0:00:30]} 42. Qe7 {[%clk 0:00:11]}  Bxg2 {[%clk 0:00:27]} 43. Kxg2 {[%clk 0:00:11]}  Qg5+ {[%clk 0:00:25]} 44. Kh1 {[%clk 0:00:11]}  Qh4+ {[%clk 0:00:19]} 45. Nh2 {[%clk 0:00:09]}  Qe4+ {[%clk 0:00:18]} 46. Qxe4 {[%clk 0:00:08]}  Nxe4 {[%clk 0:00:19]} 47. Nhf3 {[%clk 0:00:07]}  f6 {[%clk 0:00:18]} 48. Kg2 {[%clk 0:00:07]}  Kf7 {[%clk 0:00:18]} 49. Rg1 {[%clk 0:00:08]}  g5 {[%clk 0:00:18]} 50. Ne1 {[%clk 0:00:06]}  Ne6 {[%clk 0:00:17]} 51. Nef3 {[%clk 0:00:03]}  g4 {[%clk 0:00:17]} 52. Nxe6 {[%clk 0:00:03]}  gxf3+ {[%clk 0:00:17]} 53. Kxf3 {[%clk 0:00:02]}  Kxe6 {[%clk 0:00:18]} 54. Rg7 {[%clk 0:00:02]}  Nd2+ {[%clk 0:00:17]} 55. Ke2 {[%clk 0:00:02]}  Nxb1 {[%clk 0:00:17]} 56. c7 {[%clk 0:00:03]}  Rc8 {[%clk 0:00:17]} 57. Rh7 {[%clk 0:00:03]}  Rc6 {[%clk 0:00:17]} 58. Kd3 {[%clk 0:00:03]}  b3 {[%clk 0:00:17]} 59. e4 {[%clk 0:00:04]}  dxe4+ {[%clk 0:00:17]} 60. Kxe4 {[%clk 0:00:04]}  b2 {[%clk 0:00:17]} 61. Kd3 {[%clk 0:00:04]}  Nc3 {[%clk 0:00:17]} 62. Kd2 {[%clk 0:00:03]}  b1=Q {[%clk 0:00:17]} 63. Re7+ {[%clk 0:00:03]}  Kxe7 {[%clk 0:00:17]} 64. Ke3 {[%clk 0:00:03]}  Re6+ {[%clk 0:00:16]} 65. Kd4 {[%clk 0:00:04]}  Qb4+ {[%clk 0:00:13]} 0-1


[Site "https://www.chess.com"]

[Event "Titled Tuesday Blitz August 31 2021"]
[White "Dzagnidze, Nana"]
[Black "Rodriguez Hernandez, Luis Daniel"]
[WhiteFideId "13601903"]
[BlackFideId "3506770"]
[WhiteElo "2391"]
[BlackElo "2133"]
[Result "1-0"]
[Round "10"]
[TimeControl "180+1"]
[Date "2021.08.31"]
[WhiteClock "0:00:08"]
[BlackClock "0:00:16"]

1. d4 {[%clk 0:03:00]}  Nf6 {[%clk 0:02:59]} 2. c4 {[%clk 0:03:00]}  g6 {[%clk 0:03:00]} 3. Nf3 {[%clk 0:03:00]}  Bg7 {[%clk 0:02:58]} 4. Nc3 {[%clk 0:03:01]}  O-O {[%clk 0:02:59]} 5. g3 {[%clk 0:03:01]}  d6 {[%clk 0:02:59]} 6. Bg2 {[%clk 0:03:02]}  Nc6 {[%clk 0:03:00]} 7. O-O {[%clk 0:03:02]}  Bg4 {[%clk 0:03:01]} 8. h3 {[%clk 0:02:43]}  Bxf3 {[%clk 0:03:01]} 9. Bxf3 {[%clk 0:02:42]}  Nd7 {[%clk 0:03:01]} 10. e3 {[%clk 0:02:34]}  e5 {[%clk 0:03:02]} 11. dxe5 {[%clk 0:02:19]}  Ndxe5 {[%clk 0:03:03]} 12. Be2 {[%clk 0:02:18]}  Qd7 {[%clk 0:03:03]} 13. Kg2 {[%clk 0:02:18]}  Na5 {[%clk 0:03:04]} 14. Qd5 {[%clk 0:01:57]}  b6 {[%clk 0:02:56]} 15. Rd1 {[%clk 0:01:15]}  Rad8 {[%clk 0:02:40]} 16. Qb5 {[%clk 0:01:14]}  Qe6 {[%clk 0:02:25]} 17. Qa6 {[%clk 0:00:55]}  Nexc4 {[%clk 0:02:10]} 18. Nd5 {[%clk 0:00:53]}  Qe4+ {[%clk 0:01:37]} 19. Bf3 {[%clk 0:00:52]}  Qc2 {[%clk 0:01:36]} 20. e4 {[%clk 0:00:20]}  Ne5 {[%clk 0:01:30]} 21. Qe2 {[%clk 0:00:14]}  Qa4 {[%clk 0:01:21]} 22. b3 {[%clk 0:00:12]}  Nxb3 {[%clk 0:01:20]} 23. axb3 {[%clk 0:00:12]}  Qxa1 {[%clk 0:01:20]} 24. Bb2 {[%clk 0:00:13]}  Qa5 {[%clk 0:01:00]} 25. Nxc7 {[%clk 0:00:11]}  Qb4 {[%clk 0:00:52]} 26. Qe3 {[%clk 0:00:07]}  Nxf3 {[%clk 0:00:47]} 27. Bxg7 {[%clk 0:00:06]}  Kxg7 {[%clk 0:00:43]} 28. Qxf3 {[%clk 0:00:06]}  Rc8 {[%clk 0:00:33]} 29. Nd5 {[%clk 0:00:06]}  Qc5 {[%clk 0:00:33]} 30. Qf6+ {[%clk 0:00:06]}  Kh6 {[%clk 0:00:32]} 31. Qh4+ {[%clk 0:00:06]}  Kg7 {[%clk 0:00:33]} 32. Qf6+ {[%clk 0:00:07]}  Kh6 {[%clk 0:00:34]} 33. g4 {[%clk 0:00:08]}  Qc2 {[%clk 0:00:18]} 34. g5+ {[%clk 0:00:07]}  Kh5 {[%clk 0:00:19]} 35. Qf3+ {[%clk 0:00:07]}  Kxg5 {[%clk 0:00:16]} 36. Qf4+ {[%clk 0:00:08]}  Kh5 {[%clk 0:00:16]} 37. Nf6# {[%clk 0:00:08]} 1-0


[Site "https://www.chess.com"]

[Event "Titled Tuesday Blitz August 31 2021"]
[White "Espinosa, Pedro"]
[Black "Muradov, Soltan"]
[WhiteFideId "30921066"]
[BlackFideId "14002108"]
[WhiteElo "1673"]
[BlackElo "1854"]
[Result "1-0"]
[Round "10"]
[TimeControl "180+1"]
[Date "2021.08.31"]
[WhiteClock "0:02:30"]
[BlackClock "0:02:23"]

1. e4 {[%clk 0:03:00]}  e5 {[%clk 0:02:58]} 2. Nf3 {[%clk 0:02:56]}  Nf6 {[%clk 0:02:58]} 3. d4 {[%clk 0:02:55]}  d5 {[%clk 0:02:57]} 4. dxe5 {[%clk 0:02:54]}  Nxe4 {[%clk 0:02:57]} 5. Bd3 {[%clk 0:02:54]}  Nc5 {[%clk 0:02:57]} 6. O-O {[%clk 0:02:53]}  Be7 {[%clk 0:02:55]} 7. c4 {[%clk 0:02:49]}  Nxd3 {[%clk 0:02:55]} 8. Qxd3 {[%clk 0:02:47]}  dxc4 {[%clk 0:02:55]} 9. Qxc4 {[%clk 0:02:48]}  O-O {[%clk 0:02:52]} 10. Nc3 {[%clk 0:02:48]}  c6 {[%clk 0:02:48]} 11. Be3 {[%clk 0:02:47]}  Be6 {[%clk 0:02:48]} 12. Qe4 {[%clk 0:02:46]}  Nd7 {[%clk 0:02:35]} 13. Rad1 {[%clk 0:02:43]}  Qc7 {[%clk 0:02:34]} 14. Bg5 {[%clk 0:02:31]}  Bxg5 {[%clk 0:02:32]} 15. Nxg5 {[%clk 0:02:31]}  Qxe5 {[%clk 0:02:23]} 16. Qxh7# {[%clk 0:02:30]} 1-0


[Site "https://www.chess.com"]

[Event "Titled Tuesday Blitz August 31 2021"]
[White "Eswaran, Ashritha"]
[Black "deribas12345"]
[WhiteFideId "2080788"]
[WhiteElo "2456"]
[BlackElo "2581"]
[Result "0-1"]
[Round "10"]
[TimeControl "180+1"]
[Date "2021.08.31"]
[WhiteClock "0:00:29"]
[BlackClock "0:00:43"]

1. e4 {[%clk 0:03:00]}  c5 {[%clk 0:02:59]} 2. Nf3 {[%clk 0:03:00]}  d6 {[%clk 0:03:00]} 3. d4 {[%clk 0:03:00]}  cxd4 {[%clk 0:03:00]} 4. Nxd4 {[%clk 0:03:00]}  Nf6 {[%clk 0:03:01]} 5. Nc3 {[%clk 0:03:01]}  a6 {[%clk 0:03:01]} 6. Be3 {[%clk 0:02:58]}  e5 {[%clk 0:03:01]} 7. Nf3 {[%clk 0:02:59]}  Be7 {[%clk 0:03:01]} 8. Bc4 {[%clk 0:02:59]}  O-O {[%clk 0:02:59]} 9. O-O {[%clk 0:02:59]}  Bg4 {[%clk 0:02:58]} 10. h3 {[%clk 0:02:57]}  Bxf3 {[%clk 0:02:57]} 11. Qxf3 {[%clk 0:02:57]}  Nc6 {[%clk 0:02:57]} 12. Rfd1 {[%clk 0:02:54]}  b5 {[%clk 0:02:56]} 13. Bd5 {[%clk 0:02:53]}  Rc8 {[%clk 0:02:56]} 14. Ne2 {[%clk 0:02:51]}  Nxd5 {[%clk 0:02:53]} 15. exd5 {[%clk 0:02:47]}  Nb4 {[%clk 0:02:50]} 16. c3 {[%clk 0:02:46]}  Nc2 {[%clk 0:02:50]} 17. Rac1 {[%clk 0:02:46]}  Nxe3 {[%clk 0:02:51]} 18. fxe3 {[%clk 0:02:39]}  Bg5 {[%clk 0:02:45]} 19. Rf1 {[%clk 0:02:38]}  f5 {[%clk 0:02:44]} 20. Kh1 {[%clk 0:02:37]}  Rc4 {[%clk 0:02:34]} 21. Ng3 {[%clk 0:02:30]}  g6 {[%clk 0:02:31]} 22. Rc2 {[%clk 0:02:21]}  Qf6 {[%clk 0:02:25]} 23. Rcf2 {[%clk 0:02:14]}  Bh4 {[%clk 0:02:19]} 24. Re2 {[%clk 0:02:13]}  e4 {[%clk 0:02:04]} 25. Qf4 {[%clk 0:02:02]}  Bg5 {[%clk 0:01:45]} 26. Qf2 {[%clk 0:01:56]}  Qe5 {[%clk 0:01:44]} 27. Qe1 {[%clk 0:01:39]}  Bh4 {[%clk 0:01:41]} 28. Rf4 {[%clk 0:01:32]}  Bg5 {[%clk 0:01:28]} 29. Rf1 {[%clk 0:01:32]}  Qxd5 {[%clk 0:01:28]} 30. Rd2 {[%clk 0:01:16]}  Qc5 {[%clk 0:01:27]} 31. Rd4 {[%clk 0:01:14]}  Rxd4 {[%clk 0:01:26]} 32. cxd4 {[%clk 0:01:14]}  Qc4 {[%clk 0:01:21]} 33. a3 {[%clk 0:01:10]}  Qd3 {[%clk 0:01:20]} 34. Ne2 {[%clk 0:01:05]}  Qxe3 {[%clk 0:01:19]} 35. Qd1 {[%clk 0:01:01]}  f4 {[%clk 0:01:10]} 36. Nc3 {[%clk 0:01:00]}  Qd3 {[%clk 0:00:55]} 37. Qb3+ {[%clk 0:00:57]}  Kg7 {[%clk 0:00:52]} 38. Re1 {[%clk 0:00:56]}  f3 {[%clk 0:00:48]} 39. Rxe4 {[%clk 0:00:33]}  fxg2+ {[%clk 0:00:45]} 40. Kxg2 {[%clk 0:00:32]}  Qf1+ {[%clk 0:00:42]} 41. Kg3 {[%clk 0:00:29]}  Qf2+ {[%clk 0:00:42]} 42. Kg4 {[%clk 0:00:29]}  Qh4# {[%clk 0:00:43]} 0-1


[Site "https://www.chess.com"]

[Event "Titled Tuesday Blitz August 31 2021"]
[White "Ezat, Mohamed"]
[Black "Costachi, Mihnea"]
[WhiteFideId "10600906"]
[BlackFideId "1217518"]
[WhiteElo "2414"]
[BlackElo "2482"]
[Result "1-0"]
[Round "10"]
[TimeControl "180+1"]
[Date "2021.08.31"]
[WhiteClock "0:00:15"]
[BlackClock "0:00:21"]

1. d4 {[%clk 0:02:56]}  f6 {[%clk 0:03:00]} 2. c4 {[%clk 0:02:55]}  Kf7 {[%clk 0:03:01]} 3. Nc3 {[%clk 0:02:56]}  g6 {[%clk 0:03:00]} 4. e4 {[%clk 0:02:55]}  Bg7 {[%clk 0:02:53]} 5. h4 {[%clk 0:02:55]}  Nh6 {[%clk 0:02:53]} 6. h5 {[%clk 0:02:55]}  g5 {[%clk 0:02:53]} 7. f4 {[%clk 0:02:55]}  e6 {[%clk 0:02:45]} 8. fxg5 {[%clk 0:02:53]}  fxg5 {[%clk 0:02:46]} 9. Nf3 {[%clk 0:02:53]}  Bf6 {[%clk 0:02:45]} 10. e5 {[%clk 0:02:47]}  Be7 {[%clk 0:02:45]} 11. Ne4 {[%clk 0:02:48]}  Kg7 {[%clk 0:02:42]} 12. Nfxg5 {[%clk 0:02:43]}  Rf8 {[%clk 0:02:40]} 13. Bd3 {[%clk 0:02:29]}  d5 {[%clk 0:02:38]} 14. exd6 {[%clk 0:02:23]}  cxd6 {[%clk 0:02:39]} 15. Nf3 {[%clk 0:01:36]}  Nf5 {[%clk 0:02:31]} 16. h6+ {[%clk 0:01:31]}  Kh8 {[%clk 0:02:31]} 17. Bd2 {[%clk 0:01:23]}  d5 {[%clk 0:02:31]} 18. cxd5 {[%clk 0:01:18]}  exd5 {[%clk 0:02:32]} 19. Nc5 {[%clk 0:01:10]}  Nc6 {[%clk 0:02:14]} 20. O-O {[%clk 0:00:56]}  Nfxd4 {[%clk 0:01:59]} 21. Nxd4 {[%clk 0:00:52]}  Bxc5 {[%clk 0:01:59]} 22. Bc3 {[%clk 0:00:44]}  Nxd4 {[%clk 0:01:51]} 23. Rxf8+ {[%clk 0:00:24]}  Qxf8 {[%clk 0:01:52]} 24. Qh5 {[%clk 0:00:22]}  Be6 {[%clk 0:00:44]} 25. Rf1 {[%clk 0:00:21]}  Qd6 {[%clk 0:00:39]} 26. Qg5 {[%clk 0:00:17]}  Qf8 {[%clk 0:00:20]} 27. Rxf8+ {[%clk 0:00:15]}  Rxf8 {[%clk 0:00:21]} 28. Qg7# {[%clk 0:00:15]} 1-0


[Site "https://www.chess.com"]